[Event "16th Deltalift Open 2019"]
[Site "Halmstad"]
[Date "2019.06.01"]
[Round "8.12"]
[White "Svensson, Mikael"]
[Black "Ziegler, Ari"]
[Result "1/2-1/2"]
[ECO "A46"]
[WhiteElo "2125"]
[BlackElo "2300"]
[Annotator "ChessBase"]
[PlyCount "150"]
[EventDate "2019.05.30"]
[EventType "swiss"]
[EventCountry "SWE"]
[SourceTitle "playchess.com"]
[Source "ChessBase"]
[SourceQuality "1"]
[TimeControl "40/5400+30:1800+30"]

1. d4 {[%emt 0:00:00]} Nf6 {[%emt 0:01:14]} 2. Nf3 {[%emt 0:00:00]} e6 {[%emt 0:00:08]} 3. Bg5 {[%emt 0:00:08]} h6 {[%emt 0:00:43]} 4. Bh4 {[%emt 0:00:06]} c5 {[%emt 0:01:03]} 5. c3 {[%emt 0:00:13]} cxd4 {[%emt 0:01:57]} 6. cxd4 {[%emt 0:00:46]} Qb6 {[%emt 0:03:17]} 7. Qc2 {[%emt 0:07:03]} Nc6 {[%emt 0:05:48]} 8. e3 {[%emt 0:01:39]} Bb4+ {[%emt 0:03:48]} 9. Nc3 {[%emt 0:07:12]} Nd5 {[%emt 0:00:39]} 10. Nd2 {[%emt 0:00:11]} O-O {[%emt 0:08:34]} 11. a3 {[%emt 0:12:42]} Qa5 {[%emt 0:04:46]} 12. Nxd5 {[%emt 0:05:15]} Bxd2+ {[%emt 0:00:10]} 13. Qxd2 {[%emt 0:00:11]} Qxd5 {[%emt 0:00:03]} 14. f3 {[%emt 0:10:55]} f5 {[%emt 0:06:01]} 15. Bf2 {[%emt 0:02:05]} b6 {[%emt 0:02:52]} 16. Bd3 {[%emt 0:02:38]} a5 {[%emt 0:03:09]} 17. Qe2 {[%emt 0:01:46]} Qd6 {[%emt 0:00:47]} 18. Bg3 {[%emt 0:02:24]} Qe7 {[%emt 0:01:01]} 19. O-O {[%emt 0:00:24]} Bb7 {[%emt 0:06:18]} 20. Bc7 {[%emt 0:09:22]} d6 {[%emt 0:05:16]} 21. Bxb6 {[%emt 0:00:12]} Rab8 {[%emt 0:00:14]} 22. Bb5 {[%emt 0:10:44]} Ba8 {[%emt 0:00:40]} 23. Bxc6 {[%emt 0:00:07]} Bxc6 {[%emt 0:00:51]} 24. Bxa5 {[%emt 0:03:08]} Bb5 {[%emt 0:00:08]} 25. Qc2 {[%emt 0:01:37]} Bxf1 {[%emt 0:01:14]} 26. Rxf1 {[%emt 0:00:12]} Qg5 {[%emt 0:02:51]} 27. Qd2 {[%emt 0:04:26]} d5 {[%emt 0:09:14]} 28. Rc1 {[%emt 0:02:01]} Rb3 {[%emt 0:03:11]} 29. Rc3 {[%emt 0:01:20]} Rb7 {[%emt 0:03:33]} 30. Rc7 {[%emt 0:04:57]} Rxc7 {[%emt 0:01:20]} 31. Bxc7 {[%emt 0:00:06]} Qe7 {[%emt 0:00:47]} 32. Ba5 {[%emt 0:02:10]} Qb7 {[%emt 0:00:10]} 33. Qc2 {[%emt 0:02:04]} f4 {[%emt 0:02:36]} 34. exf4 {[%emt 0:02:21]} Rxf4 {[%emt 0:00:32]} 35. Qd2 {[%emt 0:01:20]} Rf7 {[%emt 0:00:37]} 36. Qb4 {[%emt 0:01:18]} Qc8 {[%emt 0:01:38]} 37. Qc3 {[%emt 0:01:15]} Qa6 {[%emt 0:00:12]} 38. Kf2 {[%emt 0:00:53]} g5 {[%emt 0:00:59]} 39. Bc7 {[%emt 0:01:20]} Qc8 {[%emt 0:01:55]} 40. Ba5 {[%emt 0:01:10]} Qb8 {[%emt 0:00:38]} 41. g3 {[%emt 0:12:23]} Qb7 {[%emt 0:04:08]} 42. Qc2 {[%emt 0:00:46]} Kg7 {[%emt 0:01:45]} 43. Qe2 {[%emt 0:01:51]} Qc6 {[%emt 0:04:18]} 44. Bc3 {[%emt 0:01:31]} Rf5 {[%emt 0:00:40]} 45. Kg2 {[%emt 0:01:19]} Kf7 {[%emt 0:04:18]} 46. Qd1 {[%emt 0:02:17]} Qc4 {[%emt 0:16:17]} 47. a4 {[%emt 0:00:30]} Kg6 {[%emt 0:00:30]} 48. a5 {[%emt 0:00:30]} Rf7 {[%emt 0:00:30]} 49. Qf1 {[%emt 0:00:30]} Qc6 {[%emt 0:00:30]} 50. Qd3+ {[%emt 0:00:30]} Kg7 {[%emt 0:00:30]} 51. Qe2 {[%emt 0:00:30]} Kh7 {[%emt 0:00:30]} 52. Qd3+ {[%emt 0:00:30]} Kg7 {[%emt 0:00:30]} 53. Qe3 {[%emt 0:00:30]} Qa6 {[%emt 0:00:30]} 54. Qe5+ {[%emt 0:00:30]} Kh7 {[%emt 0:00:10]} 55. Qe3 {[%emt 0:05:09]} Kg8 {[%emt 0:02:28]} 56. Bd2 {[%emt 0:00:41]} g4 {[%emt 0:02:32]} 57. f4 {[%emt 0:00:42]} Rf5 {[%emt 0:02:39]} 58. Bc3 {[%emt 0:03:18]} Kf7 {[%emt 0:00:46]} 59. Qd2 {[%emt 0:01:30]} h5 {[%emt 0:00:48]} 60. Qd1 {[%emt 0:00:17]} Qc4 {[%emt 0:06:20]} 61. Qf1 {[%emt 0:00:24]} Qa4 {[%emt 0:00:30]} 62. Qe2 {[%emt 0:00:49]} Qc6 {[%emt 0:01:55]} 63. Bb4 {[%emt 0:02:01]} h4 {[%emt 0:00:37]} 64. Bc5 {[%emt 0:01:30]} h3+ {[%emt 0:00:20]} 65. Kg1 {[%emt 0:00:26]} Qa4 {[%emt 0:01:50]} 66. a6 {[%emt 0:00:22]} Qa1+ {[%emt 0:00:53]} 67. Kf2 {[%emt 0:01:05]} Qh1 {[%emt 0:02:44]} 68. Ke3 {[%emt 0:00:14]} e5 {[%emt 0:00:26]} 69. Qxg4 {[%emt 0:01:55]} exf4+ {[%emt 0:01:18]} 70. gxf4 {[%emt 0:00:41]} Qc1+ {[%emt 0:00:55]} 71. Kd3 {[%emt 0:01:18]} Qb1+ {[%emt 0:01:24]} 72. Kc3 {[%emt 0:00:15]} Qc1+ {[%emt 0:00:30]} 73. Kd3 {[%emt 0:00:49]} Qb1+ {[%emt 0:00:27]} 74. Kc3 {[%emt 0:00:20]} Qc1+ {[%emt 0:00:30]} 75. Kd3 {[%emt 0:00:25]} Qb1+ {[%emt 0:00:49]} 1/2-1/2

[Event "16th Deltalift Open 2019"]
[Site "Halmstad"]
[Date "2019.06.01"]
[Round "8.13"]
[White "Nilsson, Eskil"]
[Black "Silseth, Simon"]
[Result "1/2-1/2"]
[ECO "B19"]
[WhiteElo "1991"]
[BlackElo "2268"]
[Annotator "ChessBase"]
[PlyCount "40"]
[EventDate "2019.05.30"]
[EventType "swiss"]
[EventCountry "SWE"]
[SourceTitle "playchess.com"]
[Source "ChessBase"]
[SourceQuality "1"]
[TimeControl "40/5400+30:1800+30"]

1. e4 c6 2. d4 d5 3. Nc3 dxe4 4. Nxe4 Bf5 5. Ng3 Bg6 6. h4 h6 7. Nf3 Nd7 8. h5 Bh7 9. Bd3 Bxd3 10. Qxd3 Ngf6 11. Bd2 e6 12. O-O-O Qc7 13. Ne4 O-O-O 14. g3 Nxe4 15. Qxe4 Nf6 16. Qe2 Rd5 17. c4 Rxh5 18. Rhe1 c5 19. Bf4 Bd6 20. Bxd6 Qxd6 1/2-1/2

[Event "16th Deltalift Open 2019"]
[Site "Halmstad"]
[Date "2019.06.01"]
[Round "8.14"]
[White "Nyander, Joakim"]
[Black "Karlsson, Jorgen"]
[Result "1-0"]
[ECO "A10"]
[WhiteElo "2235"]
[BlackElo "2123"]
[Annotator "ChessBase"]
[PlyCount "61"]
[EventDate "2019.05.30"]
[EventType "swiss"]
[EventCountry "SWE"]
[SourceTitle "playchess.com"]
[Source "ChessBase"]
[SourceQuality "1"]
[TimeControl "40/5400+30:1800+30"]

1. c4 {[%emt 0:00:00]} g6 {[%emt 0:00:00]} 2. g3 {[%emt 0:00:21]} Bg7 {[%emt 0:00:00]} 3. Bg2 {[%emt 0:00:08]} Nc6 {[%emt 0:00:01]} 4. Nc3 {[%emt 0:01:15]} d6 {[%emt 0:01:10]} 5. e4 {[%emt 0:02:28]} e5 {[%emt 0:00:40]} 6. Nge2 {[%emt 0:00:24]} Be6 {[%emt 0:00:46]} 7. d3 {[%emt 0:00:22]} Qd7 {[%emt 0:00:35]} 8. Nd5 {[%emt 0:03:00]} h6 {[%emt 0:01:12]} 9. O-O {[%emt 0:02:29]} Nge7 {[%emt 0:10:52]} 10. Be3 {[%emt 0:11:49]} Nd8 {[%emt 0:07:54]} 11. Rc1 {[%emt 0:05:40]} c6 {[%emt 0:06:24]} 12. Nxe7 {[%emt 0:01:48]} Qxe7 {[%emt 0:01:28]} 13. d4 {[%emt 0:02:52]} f5 {[%emt 0:05:33]} 14. c5 {[%emt 0:19:12]} Nf7 {[%emt 0:08:02]} 15. d5 {[%emt 0:02:11]} cxd5 {[%emt 0:01:55]} 16. exd5 {[%emt 0:01:08]} Bc8 {[%emt 0:01:17]} 17. Qa4+ {[%emt 0:01:03]} Kf8 {[%emt 0:01:29]} 18. cxd6 {[%emt 0:06:41]} Nxd6 {[%emt 0:00:12]} 19. Bc5 {[%emt 0:01:06]} Kf7 {[%emt 0:02:03]} 20. Nc3 {[%emt 0:00:42]} Rd8 {[%emt 0:02:25]} 21. Nb5 {[%emt 0:05:19]} Bd7 {[%emt 0:03:40]} 22. Bxd6 {[%emt 0:01:03]} Bxb5 {[%emt 0:00:17]} 23. Bxe7 {[%emt 0:00:11]} Bxa4 {[%emt 0:00:07]} 24. Bxd8 {[%emt 0:00:21]} Rxd8 {[%emt 0:00:05]} 25. Rc7+ {[%emt 0:01:14]} Rd7 {[%emt 0:00:41]} 26. Rxd7+ Bxd7 {[%emt 0:00:07]} 27. Rc1 {[%emt 0:00:45]} e4 {[%emt 0:00:49]} 28. Rc7 {[%emt 0:00:34]} Ke7 {[%emt 0:00:20]} 29. Rxb7 {[%emt 0:00:17]} Bd4 {[%emt 0:00:31]} 30. Bf1 {[%emt 0:01:31]} Bb6 {[%emt 0:00:35]} 31. Bb5 {[%emt 0:00:17]} 1-0

[Event "16th Deltalift Open 2019"]
[Site "Halmstad"]
[Date "2019.06.01"]
[Round "8.15"]
[White "Andersson, Robert"]
[Black "Holst, Conny"]
[Result "1/2-1/2"]
[ECO "A05"]
[WhiteElo "2074"]
[BlackElo "2197"]
[Annotator "ChessBase"]
[PlyCount "42"]
[EventDate "2019.05.30"]
[EventType "swiss"]
[EventCountry "SWE"]
[SourceTitle "playchess.com"]
[Source "ChessBase"]
[SourceQuality "1"]
[TimeControl "40/5400+30:1800+30"]

1. Nf3 {[%emt 0:00:00]} Nf6 {[%emt 0:00:00]} 2. d4 {[%emt 0:04:29]} e6 {[%emt 0:02:37]} 3. g3 {[%emt 0:00:11]} b6 {[%emt 0:00:39]} 4. Bg2 {[%emt 0:00:09]} Bb7 {[%emt 0:00:18]} 5. O-O {[%emt 0:00:17]} Be7 {[%emt 0:04:32]} 6. c4 {[%emt 0:01:07]} O-O {[%emt 0:01:53]} 7. Re1 {[%emt 0:00:30]} d5 {[%emt 0:06:24]} 8. cxd5 {[%emt 0:01:59]} exd5 {[%emt 0:00:30]} 9. Nc3 {[%emt 0:06:38]} c5 {[%emt 0:10:04]} 10. dxc5 {[%emt 0:08:31]} bxc5 {[%emt 0:08:38]} 11. Ne5 {[%emt 0:13:45]} Na6 {[%emt 0:03:54]} 12. Bg5 {[%emt 0:17:45]} Nc7 {[%emt 0:07:17]} 13. Qa4 {[%emt 0:03:07]} Qd6 {[%emt 0:06:36]} 14. Bxf6 {[%emt 0:07:34]} Bxf6 {[%emt 0:01:23]} 15. Nc4 {[%emt 0:10:40]} Qa6 {[%emt 0:06:12]} 16. Qxa6 {[%emt 0:00:26]} Bxa6 {[%emt 0:00:30]} 17. Ne3 {[%emt 0:04:56]} Rab8 {[%emt 0:06:17]} 18. Nexd5 {[%emt 0:06:55]} Nxd5 {[%emt 0:00:32]} 19. Bxd5 {[%emt 0:00:13]} Rxb2 {[%emt 0:02:44]} 20. Rac1 {[%emt 0:04:35]} Rd8 {[%emt 0:04:31]} 21. Bf3 {[%emt 0:01:10]} Bxc3 {[%emt 0:08:30]} 1/2-1/2

[Event "16th Deltalift Open 2019"]
[Site "Halmstad"]
[Date "2019.06.01"]
[Round "8.17"]
[White "Petersson, Baldur Teodor"]
[Black "Cramling Bellon, Anna"]
[Result "1/2-1/2"]
[ECO "B30"]
[WhiteElo "2163"]
[BlackElo "1990"]
[Annotator "ChessBase"]
[PlyCount "35"]
[EventDate "2019.05.30"]
[EventType "swiss"]
[EventCountry "SWE"]
[SourceTitle "playchess.com"]
[Source "ChessBase"]
[SourceQuality "1"]
[TimeControl "40/5400+30:1800+30"]

1. e4 {[%emt 0:00:00]} c5 {[%emt 0:00:00]} 2. Nf3 {[%emt 0:00:00]} Nc6 {[%emt 0:00:05]} 3. d3 {[%emt 0:00:00]} d6 {[%emt 0:01:17]} 4. g3 {[%emt 0:00:03]} g6 {[%emt 0:00:06]} 5. Bg2 {[%emt 0:00:05]} Bg7 {[%emt 0:00:02]} 6. O-O {[%emt 0:00:08]} e5 {[%emt 0:00:02]} 7. c3 {[%emt 0:00:07]} Nge7 {[%emt 0:00:31]} 8. a3 {[%emt 0:00:07]} a5 {[%emt 0:11:35]} 9. a4 {[%emt 0:00:14]} O-O {[%emt 0:00:18]} 10. Na3 {[%emt 0:00:23]} h6 {[%emt 0:00:04]} 11. Re1 {[%emt 0:03:26]} Be6 {[%emt 0:00:49]} 12. Nd2 {[%emt 0:09:43]} f5 {[%emt 0:13:30]} 13. Ndc4 {[%emt 0:01:07]} d5 {[%emt 0:05:08]} 14. exd5 {[%emt 0:01:17]} Bxd5 {[%emt 0:05:18]} 15. Bxd5+ {[%emt 0:01:14]} Nxd5 {[%emt 0:00:05]} 16. Qb3 {[%emt 0:01:04]} Rf7 {[%emt 0:00:58]} 17. Nb5 {[%emt 0:01:00]} Rd7 {[%emt 0:03:35]} 18. Ne3 {[%emt 0:05:07]} 1/2-1/2

[Event "16th Deltalift Open 2019"]
[Site "Halmstad"]
[Date "2019.06.01"]
[Round "8.18"]
[White "Lindhe, Magnus"]
[Black "Carlstrom, Niklas"]
[Result "1-0"]
[ECO "D00"]
[WhiteElo "2173"]
[BlackElo "2065"]
[Annotator "ChessBase"]
[PlyCount "89"]
[EventDate "2019.05.30"]
[EventType "swiss"]
[EventCountry "SWE"]
[SourceTitle "playchess.com"]
[Source "ChessBase"]
[SourceQuality "1"]
[TimeControl "40/5400+30:1800+30"]

1. d4 {[%emt 0:00:00]} d5 {[%emt 0:00:26]} 2. c3 {[%emt 0:00:00]} Nc6 {[%emt 0:01:02]} 3. Bf4 {[%emt 0:01:06]} Bg4 {[%emt 0:00:57]} 4. Na3 {[%emt 0:02:25]} f6 {[%emt 0:02:12]} 5. f3 {[%emt 0:01:49]} e5 {[%emt 0:03:17]} 6. Bg3 {[%emt 0:04:44]} Be6 {[%emt 0:02:23]} 7. Nc2 {[%emt 0:00:19]} Bd6 {[%emt 0:05:25]} 8. e4 {[%emt 0:01:30]} exd4 {[%emt 0:01:14]} 9. Nxd4 {[%emt 0:00:43]} Nxd4 {[%emt 0:04:05]} 10. Qxd4 {[%emt 0:00:08]} Ne7 {[%emt 0:02:48]} 11. Bb5+ {[%emt 0:08:02]} c6 {[%emt 0:02:02]} 12. Ba4 {[%emt 0:00:26]} O-O {[%emt 0:02:04]} 13. Ne2 {[%emt 0:00:52]} b5 {[%emt 0:08:13]} 14. Bxd6 {[%emt 0:01:33]} Qxd6 {[%emt 0:00:24]} 15. exd5 {[%emt 0:05:42]} Nxd5 {[%emt 0:01:08]} 16. Bb3 {[%emt 0:00:23]} c5 {[%emt 0:01:01]} 17. Qd2 {[%emt 0:00:21]} c4 {[%emt 0:02:35]} 18. Bc2 {[%emt 0:00:14]} Rad8 {[%emt 0:04:55]} 19. O-O {[%emt 0:02:09]} Qb6+ {[%emt 0:00:50]} 20. Nd4 {[%emt 0:01:42]} Nb4 {[%emt 0:05:22]} 21. Qf2 {[%emt 0:04:00]} Nxc2 {[%emt 0:10:26]} 22. Nxc2 {[%emt 0:00:11]} Qb8 {[%emt 0:01:47]} 23. Nd4 {[%emt 0:01:32]} Bd5 {[%emt 0:01:39]} 24. a3 {[%emt 0:00:28]} a6 {[%emt 0:01:41]} 25. Rfe1 {[%emt 0:02:23]} Rfe8 {[%emt 0:01:23]} 26. Rxe8+ {[%emt 0:02:41]} Rxe8 {[%emt 0:00:06]} 27. Re1 {[%emt 0:00:06]} Re5 {[%emt 0:01:46]} 28. Qg3 {[%emt 0:03:02]} Rxe1+ {[%emt 0:01:46]} 29. Qxe1 {[%emt 0:00:06]} Kf7 {[%emt 0:00:28]} 30. Qe3 {[%emt 0:04:39]} Qc8 {[%emt 0:02:42]} 31. Kf2 {[%emt 0:01:57]} Qd7 {[%emt 0:00:47]} 32. Qf4 {[%emt 0:00:43]} g6 {[%emt 0:01:47]} 33. h4 {[%emt 0:00:52]} Kg7 {[%emt 0:01:13]} 34. h5 {[%emt 0:04:47]} Bb7 {[%emt 0:10:56]} 35. h6+ {[%emt 0:06:56]} Kf7 {[%emt 0:00:08]} 36. Qb8 {[%emt 0:00:19]} Bc8 {[%emt 0:00:57]} 37. Qb6 {[%emt 0:02:18]} Bb7 {[%emt 0:01:07]} 38. Qc5 {[%emt 0:04:25]} Ba8 {[%emt 0:00:22]} 39. a4 {[%emt 0:01:02]} bxa4 {[%emt 0:02:07]} 40. Qxc4+ {[%emt 0:00:12]} Qd5 {[%emt 0:05:05]} 41. Qxa6 {[%emt 0:33:04]} g5 {[%emt 0:30:14]} 42. Qxa4 {[%emt 0:01:12]} Kg6 {[%emt 0:00:31]} 43. Qc2+ {[%emt 0:02:01]} Kxh6 {[%emt 0:00:43]} 44. Nf5+ {[%emt 0:00:33]} Kh5 {[%emt 0:00:17]} 45. g4+ {[%emt 0:00:44] Qd8} 1-0

[Event "16th Deltalift Open 2019"]
[Site "Halmstad"]
[Date "2019.06.01"]
[Round "8.19"]
[White "Johnson, Daniel"]
[Black "Wahlund, Max"]
[Result "1/2-1/2"]
[ECO "E81"]
[WhiteElo "2233"]
[BlackElo "2088"]
[Annotator "ChessBase"]
[PlyCount "33"]
[EventDate "2019.05.30"]
[EventType "swiss"]
[EventCountry "SWE"]
[SourceTitle "playchess.com"]
[Source "ChessBase"]
[SourceQuality "1"]
[TimeControl "40/5400+30:1800+30"]

1. d4 {[%emt 0:07:18]} Nf6 {[%emt 0:00:00]} 2. c4 {[%emt 0:00:10]} g6 {[%emt 0:00:00]} 3. Nc3 {[%emt 0:00:05]} Bg7 {[%emt 0:00:00]} 4. e4 {[%emt 0:00:07]} d6 {[%emt 0:00:00]} 5. f3 {[%emt 0:00:05]} O-O {[%emt 0:00:00]} 6. Nge2 {[%emt 0:00:03]} c5 {[%emt 0:00:00]} 7. d5 {[%emt 0:00:03]} e6 {[%emt 0:00:00]} 8. Ng3 {[%emt 0:00:12]} exd5 {[%emt 0:00:00]} 9. cxd5 {[%emt 0:00:05]} a6 {[%emt 0:00:05]} 10. a4 {[%emt 0:00:04]} Nbd7 {[%emt 0:00:12]} 11. Be2 {[%emt 0:00:19]} h5 {[%emt 0:00:05]} 12. Bg5 {[%emt 0:01:06]} Qc7 {[%emt 0:00:03]} 13. O-O {[%emt 0:00:49]} Nh7 {[%emt 0:00:08]} 14. Be3 {[%emt 0:00:54]} h4 {[%emt 0:00:12]} 15. Nh1 {[%emt 0:00:08]} f5 {[%emt 0:00:23]} 16. Qd2 {[%emt 0:02:01]} Ne5 {[%emt 0:00:34]} 17. Nf2 {[%emt 0:16:41]} 1/2-1/2

[Event "16th Deltalift Open 2019"]
[Site "Halmstad"]
[Date "2019.06.01"]
[Round "8.20"]
[White "Wahlstrom, Lennart"]
[Black "Svensson, Leif"]
[Result "0-1"]
[ECO "C47"]
[WhiteElo "2196"]
[BlackElo "2016"]
[Annotator "ChessBase"]
[PlyCount "110"]
[EventDate "2019.05.30"]
[EventType "swiss"]
[EventCountry "SWE"]
[SourceTitle "playchess.com"]
[Source "ChessBase"]
[SourceQuality "1"]
[TimeControl "40/5400+30:1800+30"]

1. e4 {[%emt 0:00:00]} e5 {[%emt 0:00:00]} 2. Nf3 {[%emt 0:00:00]} Nf6 {[%emt 0:00:00]} 3. Nc3 {[%emt 0:00:00]} Nc6 {[%emt 0:00:00]} 4. d4 {[%emt 0:00:02]} exd4 {[%emt 0:00:06]} 5. Nxd4 {[%emt 0:00:07]} Bb4 {[%emt 0:00:08]} 6. Nxc6 {[%emt 0:00:09]} bxc6 {[%emt 0:00:05]} 7. Bd3 {[%emt 0:00:10]} d5 {[%emt 0:00:22]} 8. exd5 {[%emt 0:00:09]} cxd5 {[%emt 0:00:06]} 9. O-O {[%emt 0:00:14]} O-O {[%emt 0:00:14]} 10. Bg5 {[%emt 0:00:13]} c6 {[%emt 0:00:12]} 11. Qf3 {[%emt 0:00:15]} Be7 {[%emt 0:00:10]} 12. h3 {[%emt 0:02:23]} h6 {[%emt 0:05:21]} 13. Bf4 {[%emt 0:02:58]} Bd6 {[%emt 0:00:24]} 14. Ne2 {[%emt 0:03:00]} Bxf4 {[%emt 0:07:42]} 15. Qxf4 {[%emt 0:02:24]} Re8 {[%emt 0:01:20]} 16. Ng3 {[%emt 0:00:51]} Be6 {[%emt 0:08:12]} 17. Nf5 {[%emt 0:12:53]} Bxf5 {[%emt 0:00:39]} 18. Qxf5 {[%emt 0:00:11]} Qb8 {[%emt 0:02:02]} 19. b3 {[%emt 0:01:40]} Qe5 {[%emt 0:00:35]} 20. Qxe5 {[%emt 0:00:30]} Rxe5 {[%emt 0:00:07]} 21. Rfe1 {[%emt 0:01:14]} Rae8 {[%emt 0:00:21]} 22. Rxe5 {[%emt 0:00:07]} Rxe5 {[%emt 0:00:10]} 23. c4 {[%emt 0:01:07]} a5 {[%emt 0:03:17]} 24. a3 {[%emt 0:07:50]} dxc4 {[%emt 0:03:49]} 25. Bxc4 {[%emt 0:00:13]} Kf8 {[%emt 0:02:06]} 26. Kf1 {[%emt 0:04:40]} Ne4 {[%emt 0:03:12]} 27. Rd1 {[%emt 0:01:05]} Ke7 {[%emt 0:00:12]} 28. g4 {[%emt 0:13:31]} g5 {[%emt 0:01:13]} 29. Kg2 {[%emt 0:05:18]} Nd6 {[%emt 0:00:57]} 30. Ba6 {[%emt 0:10:42]} Nb5 {[%emt 0:06:25]} 31. a4 {[%emt 0:06:41]} Nd6 {[%emt 0:00:21]} 32. Rd4 {[%emt 0:09:12]} Re4 {[%emt 0:04:12]} 33. Rd3 {[%emt 0:01:18]} f5 {[%emt 0:00:27]} 34. gxf5 {[%emt 0:02:01]} Nxf5 {[%emt 0:00:14]} 35. Bb7 {[%emt 0:07:54]} Nd4 {[%emt 0:07:44]} 36. Ba6 {[%emt 0:04:19]} Ne6 {[%emt 0:04:42]} 37. Re3 {[%emt 0:01:25]} Nf4+ {[%emt 0:01:04]} 38. Kg3 {[%emt 0:00:13]} Rxe3+ {[%emt 0:03:20]} 39. fxe3 {[%emt 0:00:04]} Nd5 {[%emt 0:00:20]} 40. Kf3 {[%emt 0:01:06]} Nf6 {[%emt 0:02:54]} 41. Bb7 {[%emt 0:03:00]} Kd6 {[%emt 0:00:44]} 42. e4 {[%emt 0:00:33]} c5 {[%emt 0:00:49]} 43. h4 {[%emt 0:14:45]} Ke5 {[%emt 0:01:43]} 44. hxg5 {[%emt 0:00:09]} hxg5 {[%emt 0:00:06]} 45. Bc6 {[%emt 0:06:11]} g4+ {[%emt 0:06:57]} 46. Ke3 {[%emt 0:00:26]} g3 {[%emt 0:01:44]} 47. Bb7 {[%emt 0:00:31]} g2 {[%emt 0:00:19]} 48. Kf2 {[%emt 0:00:10]} Nxe4+ {[%emt 0:00:06]} 49. Kxg2 {[%emt 0:00:25]} Nd2 {[%emt 0:00:06]} 50. Kf2 {[%emt 0:00:34]} Kd4 {[%emt 0:00:27]} 51. Ke2 {[%emt 0:00:32]} Nxb3 {[%emt 0:00:10]} 52. Kd1 {[%emt 0:00:48]} Kc3 {[%emt 0:00:12]} 53. Bd5 {[%emt 0:00:29]} c4 {[%emt 0:00:24]} 54. Bf7 {[%emt 0:00:23]} Nc5 {[%emt 0:00:25]} 55. Be8 {[%emt 0:00:57]} Kb2 {[%emt 0:00:09]} 0-1

[Event "16th Deltalift Open 2019"]
[Site "Halmstad"]
[Date "2019.06.01"]
[Round "8.22"]
[White "Mejvik, Jacob"]
[Black "Lindborg, Patrik"]
[Result "1/2-1/2"]
[ECO "B48"]
[WhiteElo "2057"]
[BlackElo "2172"]
[Annotator "ChessBase"]
[PlyCount "48"]
[EventDate "2019.05.30"]
[EventType "swiss"]
[EventCountry "SWE"]
[SourceTitle "playchess.com"]
[Source "ChessBase"]
[SourceQuality "1"]
[TimeControl "40/5400+30:1800+30"]

1. e4 {[%emt 0:04:38]} c5 {[%emt 0:00:00]} 2. Nf3 {[%emt 0:00:04]} e6 {[%emt 0:00:00]} 3. d4 {[%emt 0:00:06]} cxd4 {[%emt 0:00:00]} 4. Nxd4 {[%emt 0:00:01]} Nc6 {[%emt 0:00:10]} 5. Nc3 {[%emt 0:00:08]} Qc7 {[%emt 0:00:18]} 6. Be3 {[%emt 0:00:06]} a6 {[%emt 0:00:08]} 7. Qd2 {[%emt 0:00:09]} Nf6 {[%emt 0:00:24]} 8. O-O-O {[%emt 0:01:05]} b5 {[%emt 0:05:36]} 9. Nxc6 {[%emt 0:00:21]} Qxc6 {[%emt 0:11:02]} 10. f3 {[%emt 0:00:54]} Bb4 {[%emt 0:04:59]} 11. Bd4 {[%emt 0:05:41]} Bb7 {[%emt 0:04:28]} 12. Qg5 {[%emt 0:02:17]} Be7 {[%emt 0:00:10]} 13. Bd3 {[%emt 0:08:02]} b4 {[%emt 0:06:40]} 14. Ne2 {[%emt 0:00:19]} O-O-O {[%emt 0:00:40]} 15. Qa5 {[%emt 0:04:01]} d5 {[%emt 0:03:18]} 16. Bb6 {[%emt 0:05:22]} Rd6 {[%emt 0:00:27]} 17. Bc5 {[%emt 0:05:21]} dxe4 {[%emt 0:02:38]} 18. fxe4 {[%emt 0:01:18]} Rxd3 {[%emt 0:04:40]} 19. Bxe7 {[%emt 0:00:23]} Rd7 {[%emt 0:01:16]} 20. Rxd7 {[%emt 0:05:00]} Qxd7 {[%emt 0:07:29]} 21. Qxb4 {[%emt 0:00:58]} Nxe4 {[%emt 0:02:09]} 22. Rf1 {[%emt 0:14:11]} Re8 {[%emt 0:05:23]} 23. Bh4 {[%emt 0:03:23]} f6 {[%emt 0:04:44]} 24. Rd1 {[%emt 0:00:39]} Qe7 {[%emt 0:02:52]} 1/2-1/2

[Event "16th Deltalift Open 2019"]
[Site "Halmstad"]
[Date "2019.06.01"]
[Round "8.23"]
[White "Dingertz, Erik"]
[Black "Blomstrom, Lars"]
[Result "0-1"]
[ECO "A20"]
[WhiteElo "1969"]
[BlackElo "2153"]
[Annotator "ChessBase"]
[PlyCount "62"]
[EventDate "2019.05.30"]
[EventType "swiss"]
[EventCountry "SWE"]
[SourceTitle "playchess.com"]
[Source "ChessBase"]
[SourceQuality "1"]
[TimeControl "40/5400+30:1800+30"]

1. c4 {[%emt 0:00:00]} e5 {[%emt 0:00:31]} 2. g3 {[%emt 0:00:14]} Nc6 {[%emt 0:02:16]} 3. Bg2 {[%emt 0:00:34]} f5 {[%emt 0:01:22]} 4. Nc3 {[%emt 0:00:18]} Nf6 {[%emt 0:00:20]} 5. d3 {[%emt 0:00:54]} Bb4 {[%emt 0:04:31]} 6. Bd2 {[%emt 0:01:19]} O-O {[%emt 0:00:46]} 7. a3 {[%emt 0:00:32]} Bxc3 {[%emt 0:00:16]} 8. Bxc3 {[%emt 0:00:07]} d6 {[%emt 0:01:35]} 9. b4 {[%emt 0:01:37]} Qe8 {[%emt 0:02:36]} 10. b5 {[%emt 0:01:12]} Ne7 {[%emt 0:01:12]} 11. e3 {[%emt 0:04:59]} f4 {[%emt 0:02:18]} 12. Ne2 {[%emt 0:02:29]} fxe3 {[%emt 0:02:49]} 13. fxe3 {[%emt 0:00:05]} Ng4 {[%emt 0:04:38]} 14. Qd2 {[%emt 0:00:05]} Qg6 {[%emt 0:01:10]} 15. e4 {[%emt 0:05:00]} Bd7 {[%emt 0:06:08]} 16. h3 {[%emt 0:02:18]} Nf2 {[%emt 0:02:11]} 17. Rf1 {[%emt 0:02:03]} Nxh3 {[%emt 0:00:33]} 18. O-O-O {[%emt 0:00:07]} Nf2 {[%emt 0:04:09]} 19. Rde1 {[%emt 0:01:44]} a6 {[%emt 0:00:31]} 20. b6 {[%emt 0:01:04]} cxb6 {[%emt 0:00:30]} 21. Qe3 {[%emt 0:00:09]} Qh6 {[%emt 0:14:36]} 22. Qxh6 {[%emt 0:03:39]} gxh6 {[%emt 0:00:03]} 23. Kd2 {[%emt 0:03:54]} Rae8 {[%emt 0:11:36]} 24. d4 {[%emt 0:11:41]} Nc6 {[%emt 0:04:04]} 25. Rb1 {[%emt 0:07:17]} exd4 {[%emt 0:01:36]} 26. Nxd4 {[%emt 0:00:10]} Nxe4+ {[%emt 0:06:23]} 27. Bxe4 {[%emt 0:00:27]} Rxe4 {[%emt 0:00:09]} 28. Rxf8+ {[%emt 0:03:37]} Kxf8 {[%emt 0:00:03]} 29. Kd3 {[%emt 0:02:15]} Rg4 {[%emt 0:00:59]} 30. Ne2 {[%emt 0:00:26]} Bf5+ {[%emt 0:00:06]} 31. Ke3 {[%emt 0:00:16]} Bxb1 {[%emt 0:00:04] Kd4} 0-1